[Event "*** MasterClass Titled Tuesday Blitz"]
[Site "Chess.com"]
[Date "2017.11.07"]
[Round "6"]
[White "ZapataCharlesS"]
[Black "gmcorrales"]
[Result "0-1"]
[WhiteElo "2538"]
[BlackElo "2688"]
[TimeControl "180+2"]
[EndTime "15:27:54 PST"]
[Termination "gmcorrales won on time"]

1. d4 {[%clk 0:00:34]} 1... Nf6 {[%clk 0:02:59.6]} 2. Nf3 {[%clk 0:00:35.9]}
2... e6 {[%clk 0:03:00.6]} 3. Bg5 {[%clk 0:00:35.9]} 3... d5 {[%clk 0:03:00.7]}
4. e3 {[%clk 0:00:36.6]} 4... Be7 {[%clk 0:03:01.9]} 5. Nbd2 {[%clk 0:00:36.6]}
5... O-O {[%clk 0:03:03.5]} 6. c3 {[%clk 0:00:38.2]} 6... b6 {[%clk 0:03:05]} 7.
Bd3 {[%clk 0:00:39.8]} 7... Bb7 {[%clk 0:03:06.5]} 8. O-O {[%clk 0:00:41.2]}
8... Nbd7 {[%clk 0:03:08.1]} 9. Rc1 {[%clk 0:00:39.4]} 9... c5 {[%clk
0:03:09.2]} 10. Ne5 {[%clk 0:00:38.6]} 10... h6 {[%clk 0:03:09.9]} 11. Nxd7
{[%clk 0:00:35.7]} 11... Qxd7 {[%clk 0:03:10.6]} 12. Bxf6 {[%clk 0:00:37.3]}
12... Bxf6 {[%clk 0:03:11.7]} 13. f4 {[%clk 0:00:39.2]} 13... a6 {[%clk
0:03:07.7]} 14. Nf3 {[%clk 0:00:37.1]} 14... Rac8 {[%clk 0:03:07.4]} 15. Ne5
{[%clk 0:00:34.1]} 15... Qe7 {[%clk 0:03:07.9]} 16. a3 {[%clk 0:00:32.3]} 16...
b5 {[%clk 0:03:09]} 17. b4 {[%clk 0:00:28.1]} 17... cxb4 {[%clk 0:03:08.7]} 18.
cxb4 {[%clk 0:00:27.9]} 18... Rxc1 {[%clk 0:02:54.2]} 19. Qxc1 {[%clk
0:00:29.8]} 19... Rc8 {[%clk 0:02:55.4]} 20. Qd2 {[%clk 0:00:28.5]} 20... Qc7
{[%clk 0:02:56]} 21. Ra1 {[%clk 0:00:19.7]} 21... Qc3 {[%clk 0:02:53.2]} 22. Qd1
{[%clk 0:00:19.6]} 22... Qb2 {[%clk 0:02:41.2]} 23. Bf1 {[%clk 0:00:16]} 23...
Rc3 {[%clk 0:02:39.2]} 24. Nd3 {[%clk 0:00:17.1]} 24... Qc2 {[%clk 0:02:11.1]}
25. Qxc2 {[%clk 0:00:15]} 25... Rxc2 {[%clk 0:02:13]} 26. Nc5 {[%clk 0:00:16.7]}
26... Bc8 {[%clk 0:02:13.6]} 27. a4 {[%clk 0:00:14.2]} 27... bxa4 {[%clk
0:02:07.6]} 28. Rxa4 {[%clk 0:00:16.1]} 28... g5 {[%clk 0:02:07.1]} 29. g3
{[%clk 0:00:17.1]} 29... Rc1 {[%clk 0:01:55.3]} 30. Kf2 {[%clk 0:00:17.4]} 30...
gxf4 {[%clk 0:01:56.3]} 31. gxf4 {[%clk 0:00:17.7]} 31... Bh4+ {[%clk
0:01:57.3]} 32. Ke2 {[%clk 0:00:19.3]} 32... e5 {[%clk 0:01:58]} 33. Bg2 {[%clk
0:00:15.3]} 33... e4 {[%clk 0:01:55.6]} 34. h3 {[%clk 0:00:15.8]} 34... Rc2+
{[%clk 0:01:56]} 35. Kf1 {[%clk 0:00:17.4]} 35... Rf2+ {[%clk 0:01:38.5]} 36.
Kg1 {[%clk 0:00:18.1]} 36... Rb2 {[%clk 0:01:40.4]} 37. Nxa6 {[%clk 0:00:16.8]}
37... Bf2+ {[%clk 0:01:38.8]} 38. Kf1 {[%clk 0:00:16.8]} 38... Bxe3 {[%clk
0:01:40.1]} 39. Nc5 {[%clk 0:00:18.4]} 39... Bf5 {[%clk 0:01:30]} 40. Ra8+
{[%clk 0:00:14.2]} 40... Kg7 {[%clk 0:01:30.7]} 41. Rb8 {[%clk 0:00:15.8]} 41...
Bxd4 {[%clk 0:01:25.1]} 42. Rd8 {[%clk 0:00:17.4]} 42... Rf2+ {[%clk 0:01:19.9]}
43. Kg1 {[%clk 0:00:18.2]} 43... Rxf4+ {[%clk 0:01:20.9]} 44. Kh1 {[%clk
0:00:19.8]} 44... e3 {[%clk 0:01:17.4]} 45. Rxd5 {[%clk 0:00:17.1]} 45... e2
{[%clk 0:01:16.8]} 0-1

[Event "*** MasterClass Titled Tuesday Blitz"]
[Site "Chess.com"]
[Date "2017.11.07"]
[Round "6"]
[White "Angry_Serb"]
[Black "Tibmat"]
[Result "1-0"]
[WhiteElo "2438"]
[BlackElo "2420"]
[TimeControl "180+2"]
[EndTime "15:27:56 PST"]
[Termination "Angry_Serb won by resignation"]

1. e4 {[%clk 0:03:01.9]} 1... c5 {[%clk 0:02:57.3]} 2. Nc3 {[%clk 0:02:54.2]}
2... Nc6 {[%clk 0:02:58.6]} 3. Bb5 {[%clk 0:02:53]} 3... Nd4 {[%clk 0:02:56.8]}
4. Nf3 {[%clk 0:02:53.7]} 4... a6 {[%clk 0:02:58]} 5. Bc4 {[%clk 0:02:52.5]}
5... Nc6 {[%clk 0:02:59.6]} 6. d4 {[%clk 0:02:25.3]} 6... cxd4 {[%clk
0:03:01.5]} 7. Nxd4 {[%clk 0:02:25.9]} 7... e6 {[%clk 0:03:01.3]} 8. Bf4 {[%clk
0:01:59.4]} 8... Nge7 {[%clk 0:02:38.8]} 9. Ndb5 {[%clk 0:01:43]} 9... axb5
{[%clk 0:02:36.3]} 10. Nxb5 {[%clk 0:01:44.9]} 10... Ng6 {[%clk 0:01:32.1]} 11.
Nc7+ {[%clk 0:01:37.5]} 11... Qxc7 {[%clk 0:01:31.3]} 12. Bxc7 {[%clk
0:01:39.4]} 12... Be7 {[%clk 0:01:03.5]} 13. O-O {[%clk 0:01:22.7]} 13... O-O
{[%clk 0:01:01.1]} 14. Bd6 {[%clk 0:01:23.2]} 14... Rd8 {[%clk 0:01:01.9]} 15.
f4 {[%clk 0:01:18.1]} 15... Bf8 {[%clk 0:00:48.3]} 16. e5 {[%clk 0:01:08.4]}
16... b6 {[%clk 0:00:44.2]} 17. Bxf8 {[%clk 0:00:51.8]} 17... Nxf8 {[%clk
0:00:40.6]} 18. Qe2 {[%clk 0:00:50.6]} 18... Bb7 {[%clk 0:00:41.5]} 19. Rad1
{[%clk 0:00:47.5]} 19... Ng6 {[%clk 0:00:39.8]} 20. a3 {[%clk 0:00:45.7]} 20...
Nh4 {[%clk 0:00:36.6]} 21. Qf2 {[%clk 0:00:38.9]} 21... Nf5 {[%clk 0:00:34.4]}
22. Qxb6 {[%clk 0:00:34.9]} 22... Rab8 {[%clk 0:00:33.1]} 23. Qf2 {[%clk
0:00:35.6]} 23... Na5 {[%clk 0:00:29.2]} 24. Bd3 {[%clk 0:00:35.7]} 24... Ne7
{[%clk 0:00:29.3]} 25. b4 {[%clk 0:00:35.1]} 25... Nac6 {[%clk 0:00:29.6]} 26.
c4 {[%clk 0:00:36.7]} 26... g6 {[%clk 0:00:28.4]} 27. Be4 {[%clk 0:00:33.4]}
27... Ra8 {[%clk 0:00:28.4]} 28. Rd3 {[%clk 0:00:33.2]} 28... Ra4 {[%clk
0:00:27]} 29. b5 {[%clk 0:00:31.3]} 29... Na5 {[%clk 0:00:27.4]} 30. Qb6 {[%clk
0:00:31.1]} 30... Rb8 {[%clk 0:00:21.3]} 31. Bxb7 {[%clk 0:00:31.9]} 31... Rxb7
{[%clk 0:00:22]} 32. Qd8+ {[%clk 0:00:33.1]} 32... Kg7 {[%clk 0:00:23.2]} 33.
Qxe7 {[%clk 0:00:34.4]} 33... Nxc4 {[%clk 0:00:25.1]} 34. Qf6+ {[%clk
0:00:35.5]} 34... Kg8 {[%clk 0:00:26]} 35. Qd8+ {[%clk 0:00:33.2]} 35... Kg7
{[%clk 0:00:27.2]} 36. Rxd7 {[%clk 0:00:35.1]} 36... Rxd7 {[%clk 0:00:27.7]} 37.
Qxd7 {[%clk 0:00:37]} 37... Rxa3 {[%clk 0:00:29.3]} 38. Qd4 {[%clk 0:00:34]}
38... Ra4 {[%clk 0:00:25]} 39. Rc1 {[%clk 0:00:30.8]} 1-0

[Event "*** MasterClass Titled Tuesday Blitz"]
[Site "Chess.com"]
[Date "2017.11.07"]
[Round "6"]
[White "bugsbunny444"]
[Black "pandamaster3000"]
[Result "0-1"]
[WhiteElo "2413"]
[BlackElo "2301"]
[TimeControl "180+2"]
[EndTime "15:27:59 PST"]
[Termination "pandamaster3000 won by resignation"]

1. Nf3 {[%clk 0:03:01.9]} 1... Nf6 {[%clk 0:03:00]} 2. c4 {[%clk 0:03:00.2]}
2... g6 {[%clk 0:03:00.8]} 3. b4 {[%clk 0:03:01.8]} 3... Bg7 {[%clk 0:03:01.7]}
4. Bb2 {[%clk 0:03:03.5]} 4... O-O {[%clk 0:03:02.1]} 5. g3 {[%clk 0:03:05.1]}
5... a5 {[%clk 0:03:01.4]} 6. b5 {[%clk 0:03:05.8]} 6... d5 {[%clk 0:03:02]} 7.
cxd5 {[%clk 0:03:06.3]} 7... Nxd5 {[%clk 0:03:03.9]} 8. Bxg7 {[%clk 0:03:06.8]}
8... Kxg7 {[%clk 0:03:05.8]} 9. Qb3 {[%clk 0:03:08]} 9... a4 {[%clk 0:03:04.9]}
10. Qb2+ {[%clk 0:03:08.8]} 10... Nf6 {[%clk 0:03:06.2]} 11. Bg2 {[%clk
0:03:10.4]} 11... Nd7 {[%clk 0:02:46.3]} 12. O-O {[%clk 0:03:10.4]} 12... Nc5
{[%clk 0:02:46.2]} 13. Rc1 {[%clk 0:03:06.2]} 13... Ne4 {[%clk 0:02:37.6]} 14.
d3 {[%clk 0:02:54.9]} 14... Nd6 {[%clk 0:02:31.5]} 15. Na3 {[%clk 0:02:49.5]}
15... Kg8 {[%clk 0:02:27.8]} 16. Rc2 {[%clk 0:02:38.7]} 16... Bd7 {[%clk
0:02:06.2]} 17. Rac1 {[%clk 0:02:39.3]} 17... Nfe8 {[%clk 0:02:07.4]} 18. Ne5
{[%clk 0:02:25.4]} 18... f6 {[%clk 0:02:02.6]} 19. Nec4 {[%clk 0:02:17.2]} 19...
Nxc4 {[%clk 0:01:54.7]} 20. Rxc4 {[%clk 0:02:16.6]} 20... Be6 {[%clk 0:01:46.1]}
21. Bxb7 {[%clk 0:01:44.3]} 21... Ra7 {[%clk 0:01:07]} 22. Rd4 {[%clk
0:01:34.7]} 22... Qb8 {[%clk 0:01:08]} 23. Bc6 {[%clk 0:01:26.7]} 23... Nd6
{[%clk 0:01:07.3]} 24. Rb4 {[%clk 0:01:24.2]} 24... Qb6 {[%clk 0:00:48.5]} 25.
Qd4 {[%clk 0:01:01.1]} 25... Bxa2 {[%clk 0:00:37.5]} 26. Bd5+ {[%clk 0:00:41.8]}
26... Bxd5 {[%clk 0:00:35.8]} 27. Qxd5+ {[%clk 0:00:43.7]} 27... Kg7 {[%clk
0:00:37]} 28. Rc6 {[%clk 0:00:44.1]} 28... Qa5 {[%clk 0:00:30.6]} 29. Qc5 {[%clk
0:00:33.5]} 29... Rb8 {[%clk 0:00:21.5]} 30. Kg2 {[%clk 0:00:32.2]} 30... Kf8
{[%clk 0:00:22.3]} 31. e4 {[%clk 0:00:32.9]} 31... Nb7 {[%clk 0:00:22.8]} 32.
Qc2 {[%clk 0:00:22.7]} 32... Qxb4 {[%clk 0:00:22]} 33. Rxc7 {[%clk 0:00:22.5]}
33... Qxa3 {[%clk 0:00:22.6]} 34. b6 {[%clk 0:00:23.4]} 34... Ra6 {[%clk
0:00:22.3]} 35. Rc8+ {[%clk 0:00:24.6]} 35... Rxc8 {[%clk 0:00:17.2]} 36. Qxc8+
{[%clk 0:00:26.5]} 36... Kf7 {[%clk 0:00:18]} 37. Qxb7 {[%clk 0:00:27.8]} 37...
Qxd3 {[%clk 0:00:19.3]} 0-1

[Event "*** MasterClass Titled Tuesday Blitz"]
[Site "Chess.com"]
[Date "2017.11.07"]
[Round "6"]
[White "TijanaBlagojevic"]
[Black "cheese111"]
[Result "1-0"]
[WhiteElo "2300"]
[BlackElo "2402"]
[TimeControl "180+2"]
[EndTime "15:28:00 PST"]
[Termination "TijanaBlagojevic won on time"]

1. e4 {[%clk 0:03:01.9]} 1... d5 {[%clk 0:03:00.8]} 2. exd5 {[%clk 0:03:02.4]}
2... Nf6 {[%clk 0:03:01.9]} 3. Bb5+ {[%clk 0:03:02.4]} 3... Bd7 {[%clk
0:03:02.8]} 4. Be2 {[%clk 0:03:03.6]} 4... Nxd5 {[%clk 0:03:01.8]} 5. d4 {[%clk
0:03:04.9]} 5... c6 {[%clk 0:03:01.2]} 6. Nf3 {[%clk 0:03:06.1]} 6... Bf5 {[%clk
0:03:02]} 7. O-O {[%clk 0:03:06.8]} 7... e6 {[%clk 0:03:03.3]} 8. a3 {[%clk
0:03:07.1]} 8... Be7 {[%clk 0:03:03.2]} 9. c4 {[%clk 0:03:08.2]} 9... Nf6 {[%clk
0:03:04.5]} 10. Nc3 {[%clk 0:03:09.4]} 10... Bg4 {[%clk 0:03:00.8]} 11. Be3
{[%clk 0:03:09.8]} 11... O-O {[%clk 0:03:01.2]} 12. h3 {[%clk 0:03:11.1]} 12...
Bh5 {[%clk 0:03:01]} 13. b4 {[%clk 0:03:11]} 13... Nbd7 {[%clk 0:02:59]} 14. Qb3
{[%clk 0:03:11.7]} 14... Qc7 {[%clk 0:02:54]} 15. Rfd1 {[%clk 0:03:12.5]} 15...
Rfe8 {[%clk 0:02:48]} 16. Rac1 {[%clk 0:03:13.5]} 16... Bf8 {[%clk 0:02:43.4]}
17. a4 {[%clk 0:03:14.6]} 17... a5 {[%clk 0:02:08.3]} 18. b5 {[%clk 0:03:12.8]}
18... c5 {[%clk 0:02:09.6]} 19. d5 {[%clk 0:03:10.8]} 19... e5 {[%clk
0:02:10.9]} 20. Nh4 {[%clk 0:03:00.4]} 20... Bg6 {[%clk 0:01:58.1]} 21. Nxg6
{[%clk 0:02:53.2]} 21... hxg6 {[%clk 0:02:00]} 22. b6 {[%clk 0:02:43.8]} 22...
Qd8 {[%clk 0:01:48.7]} 23. d6 {[%clk 0:02:42]} 23... Ra6 {[%clk 0:01:46.2]} 24.
Nb5 {[%clk 0:02:39.8]} 24... Rxb6 {[%clk 0:01:45.4]} 25. Qc3 {[%clk 0:02:41]}
25... Ne4 {[%clk 0:01:37.5]} 26. Qxa5 {[%clk 0:02:35.7]} 26... Nxd6 {[%clk
0:01:38.3]} 27. Rd5 {[%clk 0:02:12.8]} 27... Nf6 {[%clk 0:00:57.9]} 28. Rxc5
{[%clk 0:01:34.5]} 28... Nf5 {[%clk 0:00:30]} 29. Rxe5 {[%clk 0:01:21.2]} 29...
Rxe5 {[%clk 0:00:20.4]} 30. Bxb6 {[%clk 0:01:21.8]} 30... Qd7 {[%clk 0:00:16.2]}
31. Bf3 {[%clk 0:01:20.9]} 31... Bc5 {[%clk 0:00:14.4]} 32. Rd1 {[%clk
0:01:05.5]} 32... Qe7 {[%clk 0:00:05.2]} 33. Bxc5 {[%clk 0:01:04.9]} 33... Qxc5
{[%clk 0:00:06.1]} 34. Qa8+ {[%clk 0:00:49.2]} 34... Re8 {[%clk 0:00:04.5]} 35.
Qxb7 {[%clk 0:00:49.9]} 35... Qxc4 {[%clk 0:00:04.3]} 36. a5 {[%clk 0:00:45.1]}
36... Nh4 {[%clk 0:00:05.4]} 37. Bc6 {[%clk 0:00:42.4]} 37... Re2 {[%clk
0:00:04.4]} 38. a6 {[%clk 0:00:39.6]} 1-0

[Event "*** MasterClass Titled Tuesday Blitz"]
[Site "Chess.com"]
[Date "2017.11.07"]
[Round "6"]
[White "GrigorGrigorov"]
[Black "Bryakin_Mikhail"]
[Result "1-0"]
[WhiteElo "2623"]
[BlackElo "2500"]
[TimeControl "180+2"]
[EndTime "15:28:03 PST"]
[Termination "GrigorGrigorov won by checkmate"]

1. d4 {[%clk 0:03:01.9]} 1... c6 {[%clk 0:03:01.9]} 2. c4 {[%clk 0:03:01.9]}
2... d5 {[%clk 0:03:03.2]} 3. Nf3 {[%clk 0:03:02.6]} 3... Nf6 {[%clk 0:03:02]}
4. Nbd2 {[%clk 0:03:03.7]} 4... a6 {[%clk 0:03:01.9]} 5. g3 {[%clk 0:03:03.5]}
5... b5 {[%clk 0:03:01.9]} 6. cxd5 {[%clk 0:03:01.4]} 6... cxd5 {[%clk
0:03:02.7]} 7. Bg2 {[%clk 0:03:02.1]} 7... Bb7 {[%clk 0:03:04]} 8. O-O {[%clk
0:03:01.9]} 8... e6 {[%clk 0:03:04.8]} 9. Nb3 {[%clk 0:03:02.1]} 9... Nbd7
{[%clk 0:03:05.6]} 10. Bf4 {[%clk 0:02:59.9]} 10... Qb6 {[%clk 0:02:53.7]} 11.
Rc1 {[%clk 0:02:59]} 11... Be7 {[%clk 0:02:54]} 12. Ne5 {[%clk 0:02:48]} 12...
O-O {[%clk 0:02:48]} 13. Bg5 {[%clk 0:02:41.8]} 13... Rfd8 {[%clk 0:02:37.5]}
14. Bxf6 {[%clk 0:01:49]} 14... Bxf6 {[%clk 0:02:34.3]} 15. Nxd7 {[%clk
0:01:47.4]} 15... Rxd7 {[%clk 0:02:36.2]} 16. Qd2 {[%clk 0:01:42.4]} 16... Rc8
{[%clk 0:02:29.5]} 17. Nc5 {[%clk 0:01:38]} 17... Rdc7 {[%clk 0:02:26.5]} 18. b4
{[%clk 0:01:38.6]} 18... Be7 {[%clk 0:02:22.2]} 19. Rc2 {[%clk 0:01:34.6]} 19...
Bxc5 {[%clk 0:02:16.3]} 20. bxc5 {[%clk 0:01:35.2]} 20... Qa7 {[%clk 0:02:12.7]}
21. Qa5 {[%clk 0:01:32.6]} 21... Bc6 {[%clk 0:02:07.3]} 22. e3 {[%clk
0:01:29.5]} 22... Rb7 {[%clk 0:02:08.4]} 23. Rb1 {[%clk 0:01:29.5]} 23... Ra8
{[%clk 0:02:01.6]} 24. Rcb2 {[%clk 0:01:27.7]} 24... Qb8 {[%clk 0:01:55.4]} 25.
a4 {[%clk 0:01:20.6]} 25... g6 {[%clk 0:01:52.3]} 26. f4 {[%clk 0:01:19.4]}
26... Kg7 {[%clk 0:01:52.1]} 27. Bf1 {[%clk 0:01:19.7]} 27... h5 {[%clk
0:01:47.5]} 28. Bd3 {[%clk 0:01:12.4]} 28... h4 {[%clk 0:01:45.8]} 29. g4 {[%clk
0:01:09.4]} 29... h3 {[%clk 0:01:40.6]} 30. Qe1 {[%clk 0:01:04.1]} 30... Qh8
{[%clk 0:01:35]} 31. Qg3 {[%clk 0:00:58.8]} 31... Rab8 {[%clk 0:01:28.4]} 32. f5
{[%clk 0:00:48.9]} 32... exf5 {[%clk 0:01:12.4]} 33. gxf5 {[%clk 0:00:47.9]}
33... Qh5 {[%clk 0:01:08.8]} 34. Rf1 {[%clk 0:00:32.4]} 34... bxa4 {[%clk
0:01:02.8]} 35. Rbf2 {[%clk 0:00:24.8]} 35... g5 {[%clk 0:00:37.9]} 36. f6+
{[%clk 0:00:25]} 36... Kh6 {[%clk 0:00:39.6]} 37. Qd6 {[%clk 0:00:13.9]} 37...
Qg4+ {[%clk 0:00:39.7]} 38. Kh1 {[%clk 0:00:13.7]} 38... Rb2 {[%clk 0:00:37.8]}
39. Rxb2 {[%clk 0:00:13.3]} 39... Rxb2 {[%clk 0:00:37.5]} 40. Qf8+ {[%clk
0:00:14.2]} 40... Kh5 {[%clk 0:00:35.8]} 41. Qh8# {[%clk 0:00:15.1]} 1-0

[Event "*** MasterClass Titled Tuesday Blitz"]
[Site "Chess.com"]
[Date "2017.11.07"]
[Round "6"]
[White "chesssharkattack"]
[Black "Rodalquilar"]
[Result "0-1"]
[WhiteElo "2371"]
[BlackElo "2507"]
[TimeControl "180+2"]
[EndTime "15:28:03 PST"]
[Termination "Rodalquilar won by resignation"]

1. e4 {[%clk 0:03:01.9]} 1... Nf6 {[%clk 0:03:01.2]} 2. e5 {[%clk 0:03:02.9]}
2... Nd5 {[%clk 0:03:02.5]} 3. c4 {[%clk 0:03:04.6]} 3... Nb6 {[%clk 0:03:03.6]}
4. c5 {[%clk 0:03:06.2]} 4... Nd5 {[%clk 0:03:05]} 5. Nc3 {[%clk 0:03:07.9]}
5... e6 {[%clk 0:03:06.2]} 6. Nf3 {[%clk 0:03:08.4]} 6... Nxc3 {[%clk
0:02:49.1]} 7. bxc3 {[%clk 0:03:08.3]} 7... b6 {[%clk 0:02:51]} 8. cxb6 {[%clk
0:03:07]} 8... axb6 {[%clk 0:02:52.9]} 9. Bd3 {[%clk 0:02:54.4]} 9... Bb7 {[%clk
0:02:52.1]} 10. O-O {[%clk 0:02:50.5]} 10... d6 {[%clk 0:02:50.1]} 11. Re1
{[%clk 0:02:50]} 11... Nd7 {[%clk 0:02:50.9]} 12. exd6 {[%clk 0:02:43.1]} 12...
Bxd6 {[%clk 0:02:52.8]} 13. Bc2 {[%clk 0:02:44.6]} 13... O-O {[%clk 0:02:36.3]}
14. d4 {[%clk 0:02:45.4]} 14... h6 {[%clk 0:02:37.7]} 15. Qd3 {[%clk 0:02:38.7]}
15... Nf6 {[%clk 0:02:38.8]} 16. Ne5 {[%clk 0:02:40]} 16... Bxe5 {[%clk
0:02:22.6]} 17. Rxe5 {[%clk 0:02:41.9]} 17... Qd7 {[%clk 0:02:03.8]} 18. Bf4
{[%clk 0:02:36.8]} 18... Qc6 {[%clk 0:02:03.5]} 19. f3 {[%clk 0:02:32]} 19...
Ra3 {[%clk 0:02:02.6]} 20. Bd2 {[%clk 0:02:26.3]} 20... Rd8 {[%clk 0:02:00.1]}
21. h4 {[%clk 0:02:20.5]} 21... Ba6 {[%clk 0:01:59.9]} 22. Qe3 {[%clk
0:02:17.8]} 22... Bc4 {[%clk 0:01:40.1]} 23. g4 {[%clk 0:02:15.4]} 23... Rda8
{[%clk 0:01:25.7]} 24. g5 {[%clk 0:02:16.1]} 24... hxg5 {[%clk 0:01:27.6]} 25.
hxg5 {[%clk 0:02:17.9]} 25... Nd5 {[%clk 0:01:28.9]} 26. Qe4 {[%clk 0:02:18.2]}
26... g6 {[%clk 0:01:30.5]} 27. Re1 {[%clk 0:01:50.8]} 27... Rxa2 {[%clk
0:01:23.6]} 28. Bc1 {[%clk 0:01:47.9]} 28... Ne7 {[%clk 0:01:15.6]} 29. Bb1
{[%clk 0:01:31.1]} 29... Qxe4 {[%clk 0:01:11]} 30. R5xe4 {[%clk 0:01:33]} 30...
Ra1 {[%clk 0:01:08.3]} 31. Bf4 {[%clk 0:01:34.4]} 31... Nd5 {[%clk 0:01:07.6]}
32. Be5 {[%clk 0:01:33.7]} 32... Kf8 {[%clk 0:01:07]} 33. Bf6 {[%clk 0:01:33.9]}
33... Ke8 {[%clk 0:01:01.5]} 34. Rh4 {[%clk 0:01:27]} 34... Nxc3 {[%clk
0:00:38.6]} 35. Rh8+ {[%clk 0:00:49.4]} 35... Kd7 {[%clk 0:00:39.6]} 36. Rxa8
{[%clk 0:00:51.3]} 36... Rxa8 {[%clk 0:00:40.3]} 37. Be4 {[%clk 0:00:53.2]}
37... Bd5 {[%clk 0:00:34.7]} 38. Re3 {[%clk 0:00:52.7]} 38... Ra1+ {[%clk
0:00:29.5]} 39. Kg2 {[%clk 0:00:44.4]} 39... Ra2+ {[%clk 0:00:30.8]} 40. Kh3
{[%clk 0:00:38.3]} 40... Ne2 {[%clk 0:00:26.5]} 41. Bxd5 {[%clk 0:00:36.7]}
41... Nf4+ {[%clk 0:00:27.2]} 42. Kg4 {[%clk 0:00:35.3]} 42... Nxd5 {[%clk
0:00:29.1]} 43. f4 {[%clk 0:00:32.3]} 43... Nxe3+ {[%clk 0:00:30.1]} 0-1

[Event "*** MasterClass Titled Tuesday Blitz"]
[Site "Chess.com"]
[Date "2017.11.07"]
[Round "6"]
[White "Iball95"]
[Black "mikhaillushenkov"]
[Result "1-0"]
[WhiteElo "2588"]
[BlackElo "2501"]
[TimeControl "180+2"]
[EndTime "15:28:04 PST"]
[Termination "Iball95 won by resignation"]

1. e4 {[%clk 0:02:52.8]} 1... e6 {[%clk 0:02:59.2]} 2. d4 {[%clk 0:02:53.5]}
2... d5 {[%clk 0:03:00.6]} 3. Nd2 {[%clk 0:02:55]} 3... Nf6 {[%clk 0:02:59.9]}
4. Bd3 {[%clk 0:02:55.5]} 4... c5 {[%clk 0:02:59]} 5. e5 {[%clk 0:02:54.1]} 5...
Nfd7 {[%clk 0:02:58.2]} 6. c3 {[%clk 0:02:55]} 6... Nc6 {[%clk 0:02:57.4]} 7.
Ne2 {[%clk 0:02:55.2]} 7... cxd4 {[%clk 0:02:57.2]} 8. cxd4 {[%clk 0:02:57.1]}
8... f6 {[%clk 0:02:56.9]} 9. exf6 {[%clk 0:02:59]} 9... Qxf6 {[%clk 0:02:57.9]}
10. Nf3 {[%clk 0:02:58.4]} 10... h6 {[%clk 0:02:55.4]} 11. O-O {[%clk
0:02:09.4]} 11... Bd6 {[%clk 0:02:52.9]} 12. Bb5 {[%clk 0:02:06.8]} 12... Ndb8
{[%clk 0:02:48.2]} 13. Ng3 {[%clk 0:02:05.7]} 13... O-O {[%clk 0:02:44.9]} 14.
Re1 {[%clk 0:02:06.6]} 14... a6 {[%clk 0:02:42.4]} 15. Ba4 {[%clk 0:02:06.5]}
15... Bd7 {[%clk 0:02:13.2]} 16. Bc2 {[%clk 0:01:59]} 16... Ne7 {[%clk
0:02:06.4]} 17. Qd3 {[%clk 0:01:51.9]} 17... Nf5 {[%clk 0:02:06]} 18. Nxf5
{[%clk 0:01:53]} 18... exf5 {[%clk 0:02:07.7]} 19. Ne5 {[%clk 0:01:53.8]} 19...
Be6 {[%clk 0:02:03]} 20. Bd2 {[%clk 0:01:42.2]} 20... Nd7 {[%clk 0:01:58.5]} 21.
Bc3 {[%clk 0:01:36.1]} 21... b5 {[%clk 0:01:55.1]} 22. a3 {[%clk 0:01:36.7]}
22... Rac8 {[%clk 0:01:49.4]} 23. Bb3 {[%clk 0:01:36.1]} 23... Nb6 {[%clk
0:01:48.1]} 24. Qf3 {[%clk 0:01:23.5]} 24... Nc4 {[%clk 0:01:43.4]} 25. Re2
{[%clk 0:01:24.4]} 25... f4 {[%clk 0:01:18.9]} 26. Rae1 {[%clk 0:01:22.5]} 26...
Bxe5 {[%clk 0:01:15.6]} 27. Bxc4 {[%clk 0:01:10.4]} 27... Rxc4 {[%clk
0:01:02.7]} 28. Rxe5 {[%clk 0:01:07.8]} 28... Bf7 {[%clk 0:01:02.5]} 29. Bb4
{[%clk 0:01:04.5]} 29... Rfc8 {[%clk 0:00:58.9]} 30. Be7 {[%clk 0:01:03.8]}
30... Qg6 {[%clk 0:00:56.9]} 31. Qxf4 {[%clk 0:01:03]} 31... Rc2 {[%clk
0:00:54.2]} 32. b4 {[%clk 0:01:03.5]} 32... Qd3 {[%clk 0:00:48.2]} 33. Bc5
{[%clk 0:00:52]} 33... Bg6 {[%clk 0:00:38.8]} 34. h4 {[%clk 0:00:45.9]} 34...
Qxa3 {[%clk 0:00:37.2]} 35. Re7 {[%clk 0:00:42.6]} 35... Kh7 {[%clk 0:00:30]}
36. Rxg7+ {[%clk 0:00:26.7]} 36... Kxg7 {[%clk 0:00:30]} 37. Re7+ {[%clk
0:00:27.7]} 37... Kg8 {[%clk 0:00:30.2]} 38. Qf6 {[%clk 0:00:28.7]} 1-0